bitfinex-derivatives/quotes_BTCF0:USTF0_20240910
["timestamp","ask_amount","ask_price","bid_price","bid_amount"]
[1725942979134,0.08852,56482.0,56478.0,0.088525]
[1725942979337,0.309587,56490.0,56474.0,0.0004]
[1725942979655,0.0014,56475.0,56474.0,0.0142]
[1725942980144,0.0004,56475.0,56474.0,1.1454]
[1725942980343,0.0004,56475.0,56474.0,1.233931]
[1725942980543,0.0004,56475.0,56474.0,0.15531102]
[1725942981442,0.0004,56475.0,56474.0,0.102731]
[1725942981745,0.0004,56475.0,56474.0,0.12892232]
[1725942981938,0.092616,56484.0,56474.0,1.17159132]
[1725942982139,0.088516,56484.0,56483.0,0.0004]
[1725942982343,0.088509,56489.0,56486.0,0.088512]
[1725942982544,0.088509,56489.0,56488.0,0.0004]
[1725942982744,0.0041,56495.0,56488.0,0.088909]
[1725942982950,0.22,56496.0,56488.0,0.088909]
[1725942983134,0.22,56496.0,56489.0,0.088507]
[1725942983135,0.088505,56491.0,56489.0,0.088507]
[1725942983752,0.088505,56491.0,56488.0,0.0004]
[1725942983753,0.088499,56495.0,56491.0,0.088503]
[1725942984045,0.3274,56520.0,56488.0,0.0004]
[1725942984046,0.088492,56500.0,56494.0,0.0004]
[1725942984343,0.088492,56500.0,56499.0,0.0004]
[1725942984547,0.0041,56506.0,56499.0,0.0004]
[1725942984737,0.0041,56506.0,56504.0,0.0004]
[1725942984938,0.11237923,56505.0,56504.0,0.0004]
[1725942985743,0.12637923,56505.0,56504.0,0.0004]
[1725942986238,0.11237923,56505.0,56504.0,0.0004]
[1725942986438,0.12637923,56505.0,56504.0,0.0004]
[1725942987037,0.03789623,56505.0,56504.0,0.088884]
[1725942987238,0.102483,56505.0,56504.0,0.0004]
[1725942988038,0.190966,56505.0,56504.0,0.0004]
[1725942988250,0.102483,56505.0,56504.0,0.0004]
[1725942988444,0.098483,56505.0,56504.0,0.0004]
[1725942988645,0.186966,56505.0,56504.0,0.0004]
[1725942988849,0.098483,56505.0,56504.0,0.0004]
[1725942989156,0.094483,56505.0,56504.0,0.0004]
[1725942989645,0.20630177,56505.0,56504.0,0.0004]
[1725942989845,0.11781877,56505.0,56504.0,0.0004]
[1725942990552,0.20630177,56505.0,56504.0,0.0004]
[1725942991146,0.11781877,56505.0,56504.0,0.0004]
[1725942992749,0.11781877,56505.0,56504.0,0.088884]
[1725942992949,0.094483,56505.0,56504.0,0.088884]
[1725942993140,0.0048,56522.0,56513.0,0.08847]
[1725942993347,0.088454,56524.0,56513.0,0.08847]
[1725942993348,0.088466,56517.0,56513.0,0.0138]
[1725942993652,0.088465,56517.0,56513.0,0.10227]
[1725942993845,0.088455,56523.0,56514.0,0.088468]
[1725942994046,0.088455,56523.0,56520.0,0.0138]
[1725942994663,0.088458,56521.0,56520.0,0.0138]
[1725942995747,0.102458,56521.0,56520.0,0.0148]
[1725942996756,0.322458,56521.0,56520.0,0.0148]
[1725942997450,0.3465996,56521.0,56520.0,0.0148]
[1725942998655,0.1265996,56521.0,56520.0,0.0148]
[1725942999958,0.1265996,56521.0,56520.0,0.0152]
[1725943000355,0.5235156,56521.0,56520.0,0.0014]
[1725943000556,0.4350576,56521.0,56520.0,0.0014]
[1725943001050,0.4350576,56521.0,56520.0,0.0044]
[1725943001452,0.3465996,56521.0,56520.0,0.0044]
[1725943001654,0.1265996,56521.0,56520.0,0.0044]
[1725943002055,0.2865996,56521.0,56520.0,0.0044]
[1725943002556,0.3750576,56521.0,56520.0,0.0044]
[1725943004062,0.088477,56509.0,56508.0,0.0041]
[1725943004260,0.088491,56500.0,56499.0,0.00894172]
[1725943004562,0.088492,56499.0,56498.0,0.06865522]
[1725943004862,0.088892,56499.0,56498.0,0.06865522]
[1725943006157,0.088892,56499.0,56498.0,0.68814922]
[1725943006668,0.0004,56499.0,56498.0,0.666794]
[1725943008063,0.0004,56499.0,56498.0,1.266794]
[1725943008262,0.0041,56508.0,56498.0,1.1783]
[1725943008451,0.02441545,56509.0,56508.0,0.088478]
[1725943008655,0.0004,56509.0,56508.0,0.088878]
[1725943008961,0.0004,56509.0,56508.0,0.088478]
[1725943009358,0.0041,56518.0,56507.0,0.0004]
[1725943009563,0.0004,56508.0,56507.0,0.0004]
[1725943009765,0.088878,56508.0,56507.0,0.0004]
[1725943011565,0.097878,56508.0,56507.0,0.08988]
[1725943012758,0.097878,56508.0,56507.0,0.0014]
[1725943018675,0.274834,56508.0,56507.0,1e-06]
[1725943018859,0.328456,56508.0,56507.0,1e-06]
[1725943019065,0.416934,56508.0,56507.0,1e-06]
[1725943019364,0.328456,56508.0,56507.0,1e-06]
[1725943019673,0.416934,56508.0,56507.0,1e-06]
[1725943020468,1.500254,56508.0,56507.0,1e-06]
[1725943020671,1.550154,56508.0,56507.0,1e-06]
[1725943022469,0.176988,56498.0,56497.0,5.4e-07]
[1725943022668,0.485882,56498.0,56497.0,5.4e-07]
[1725943023271,0.177,56494.0,56493.0,0.07063006]
[1725943023570,0.177,56494.0,56492.0,0.07063006]
[1725943023571,0.177004,56493.0,56492.0,0.07063006]
[1725943023767,0.177404,56493.0,56492.0,0.07063006]
[1725943023963,0.177006,56492.0,56491.0,0.07063006]
[1725943024165,0.088903,56492.0,56489.0,0.07057156]
[1725943024365,0.0004,56490.0,56488.0,0.00865654]
[1725943024570,0.088908,56489.0,56488.0,0.00865654]
[1725943024773,0.088509,56488.0,56487.0,0.0947]
[1725943024974,0.088909,56488.0,56487.0,0.0947]
[1725943025178,0.088909,56488.0,56487.0,0.183211]
[1725943025967,0.0004,56488.0,56487.0,0.183211]
[1725943026175,0.0014,56488.0,56487.0,0.190211]
[1725943027171,0.0014,56488.0,56487.0,1.321291]
[1725943027379,0.089909,56488.0,56487.0,0.1017]
[1725943028669,0.089909,56488.0,56487.0,0.007]
[1725943028670,0.338418,56488.0,56487.0,0.007]
[1725943028871,0.178418,56488.0,56487.0,0.007]
[1725943029175,0.088519,56483.0,56479.0,0.0932]
[1725943029371,0.11390462,56488.0,56481.0,0.08852]
[1725943029569,0.11350462,56488.0,56487.0,0.0004]
[1725943029770,0.11350462,56488.0,56487.0,0.0074]
[1725943031377,0.11350462,56488.0,56487.0,0.095911]
[1725943031573,0.11250462,56488.0,56487.0,0.088911]
[1725943032280,0.11350462,56488.0,56487.0,0.093911]
[1725943032579,0.11350462,56488.0,56487.0,0.0054]
[1725943032969,0.11350462,56488.0,56487.0,0.093911]
[1725943034181,0.11350462,56488.0,56487.0,0.0054]
[1725943041182,0.20201362,56488.0,56487.0,0.0054]
[1725943041578,0.20201362,56488.0,56473.0,0.0041]
[1725943041579,0.088531,56474.0,56473.0,0.0041]
[1725943041770,0.088531,56474.0,56465.0,0.08808109]
[1725943041771,0.088541,56468.0,56467.0,0.05482163]
[1725943041971,0.088941,56468.0,56467.0,0.05482163]
[1725943042183,0.088541,56468.0,56467.0,0.05482163]
[1725943042384,0.088541,56468.0,56467.0,0.07799348]
[1725943042779,0.088541,56468.0,56467.0,0.0459]
[1725943042986,0.089541,56468.0,56467.0,0.0529]
[1725943043283,0.089541,56468.0,56467.0,0.06162974]
[1725943044174,0.089541,56468.0,56467.0,0.0529]
[1725943045289,0.088542,56467.0,56456.0,0.0041]
[1725943045580,0.088952,56461.0,56456.0,0.0465]
[1725943046276,0.088952,56461.0,56452.0,0.0947]
[1725943046277,0.088952,56461.0,56452.0,0.0465]
[1725943046476,0.088952,56461.0,56455.0,0.07057156]
[1725943046477,0.177504,56461.0,56455.0,0.07057156]
[1725943046787,0.709864,56461.0,56454.0,0.07057156]
[1725943046985,0.709864,56461.0,56453.0,0.07057156]
[1725943047182,0.709864,56461.0,56452.0,0.07057156]
[1725943047183,1.309864,56461.0,56452.0,0.07057156]
[1725943047489,0.177134,56451.0,56450.0,0.07057156]
[1725943047688,0.03055973,56461.0,56441.0,0.07057156]
[1725943047986,0.088572,56448.0,56444.0,0.15914956]
[1725943048184,0.0008,56451.0,56445.0,0.07057156]
[1725943048385,0.16,56450.0,56443.0,0.07057156]
[1725943048682,0.089378,56444.0,56443.0,0.07057156]
[1725943048886,0.089378,56444.0,56441.0,0.088583]
[1725943049080,0.089378,56444.0,56439.0,0.11706825]
[1725943049081,0.0008,56442.0,56439.0,0.20514934]
[1725943049279,0.0008,56440.0,56439.0,0.11706825]
[1725943049485,0.088585,56440.0,56439.0,0.11706825]
[1725943049683,0.088585,56440.0,56439.0,0.07016825]
[1725943049874,0.0008,56442.0,56439.0,0.14056031]
[1725943050081,0.0008,56442.0,56440.0,0.0703914]
[1725943050273,0.0008,56442.0,56439.0,0.07016825]
[1725943050476,0.089385,56440.0,56439.0,0.07016825]
[1725943051277,0.089385,56440.0,56439.0,0.07116825]
[1725943051878,0.090385,56440.0,56439.0,0.07116825]
[1725943052391,0.11381983,56440.0,56439.0,0.07116825]
[1725943052886,0.090385,56440.0,56439.0,0.07116825]
[1725943053988,0.0018,56440.0,56439.0,0.07116825]
[1725943054485,0.090385,56440.0,56439.0,0.07116825]
[1725943056077,0.0018,56440.0,56439.0,0.15975425]
[1725943056291,0.088572,56448.0,56446.0,0.088574]
[1725943056587,0.088572,56448.0,56442.0,0.16]
[1725943056974,0.0008,56443.0,56442.0,0.248582]
[1725943057387,0.11236442,56451.0,56446.0,0.088574]
[1725943057588,0.11236442,56451.0,56447.0,0.0456]
[1725943057788,0.11236442,56451.0,56450.0,0.088569]
[1725943057987,0.088561,56455.0,56451.0,0.088566]
[1725943058285,0.248547,56464.0,56454.0,0.088563]
[1725943058487,0.248547,56464.0,56447.0,0.0456]
[1725943058488,0.08857,56450.0,56448.0,0.088571]
[1725943058680,0.0008,56449.0,56447.0,0.0456]
[1725943058987,0.0008,56449.0,56448.0,0.088572]
[1725943059393,0.0008,56449.0,56448.0,1.220012]
[1725943061199,0.092657,56458.0,56456.0,0.088559]
[1725943061491,0.088557,56458.0,56456.0,0.088559]
[1725943061695,0.088564,56454.0,56452.0,0.088566]
[1725943061990,0.088571,56449.0,56448.0,0.02524742]
[1725943062197,0.089371,56449.0,56448.0,0.02524742]
[1725943062492,0.088571,56449.0,56448.0,0.11181942]
[1725943062687,0.088571,56449.0,56448.0,0.088572]
[1725943063484,0.088569,56450.0,56442.0,0.0024]
[1725943063690,0.0008,56443.0,56442.0,0.0024]
[1725943063885,0.08938,56443.0,56442.0,0.0024]
[1725943064092,0.08938,56443.0,56442.0,0.090982]
[1725943064293,0.08938,56443.0,56442.0,0.0024]
[1725943065783,0.09038,56443.0,56442.0,0.0044]
[1725943066594,0.17896,56443.0,56442.0,0.0044]
[1725943071505,0.088602,56429.0,56428.0,0.0041]
[1725943071687,0.1608,56429.0,56421.0,0.07047322]
[1725943071893,0.08861,56424.0,56423.0,0.07047322]
[1725943072393,0.088614,56422.0,56419.0,0.07047322]
[1725943072703,0.088614,56422.0,56418.0,0.02215607]
[1725943072704,0.0018,56429.0,56428.0,0.002]
[1725943074288,0.0008,56429.0,56427.0,0.18099153]
[1725943074490,0.0041,56439.0,56428.0,0.08809153]
[1725943074700,0.00092,56442.0,56438.0,0.088587]
[1725943074893,0.09267,56450.0,56438.0,0.088587]
[1725943075091,0.09267,56450.0,56438.0,0.15911121]
[1725943075092,0.08857,56450.0,56438.0,0.15911121]
[1725943075294,0.08857,56450.0,56442.0,0.07052421]
[1725943076003,0.22,56451.0,56442.0,0.07052421]
[1725943076204,0.088576,56446.0,56441.0,0.07052421]
[1725943076402,0.088576,56446.0,56442.0,0.07052421]
[1725943076601,0.088576,56446.0,56441.0,0.07052421]
[1725943076903,0.2216,56442.0,56439.0,0.07052421]
[1725943077211,0.0008,56440.0,56439.0,0.07052421]
[1725943077405,0.0016,56442.0,56439.0,0.07052421]
[1725943077703,0.0016,56442.0,56440.0,0.07052421]
[1725943077895,0.090182,56442.0,56440.0,0.07052421]
[1725943078200,0.091182,56442.0,56440.0,0.07052421]
[1725943078604,0.091182,56442.0,56439.0,0.07052421]
[1725943078906,0.091182,56442.0,56440.0,0.07052421]
[1725943079491,0.090182,56442.0,56440.0,0.07052421]
[1725943079699,0.0026,56442.0,56439.0,0.07052421]
[1725943079903,0.088985,56440.0,56439.0,0.07052421]
[1725943080301,0.088985,56440.0,56439.0,0.07057256]
[1725943080903,0.0004,56440.0,56439.0,0.07057256]
[1725943081104,0.0004,56440.0,56438.0,0.088588]
[1725943081402,0.0004,56439.0,56438.0,0.088588]
[1725943081799,0.0004,56439.0,56434.0,0.08809153]
[1725943082099,0.001,56440.0,56434.0,0.08809153]
[1725943082100,0.0004,56435.0,56434.0,0.17668553]
[1725943082404,0.0004,56435.0,56434.0,0.27947575]
[1725943082908,0.0004,56435.0,56434.0,0.19138422]
[1725943083301,0.001,56440.0,56439.0,0.088586]
[1725943083501,0.001,56440.0,56439.0,0.42031526]
[1725943083803,0.0016,56442.0,56441.0,0.088583]
[1725943084006,0.0041,56451.0,56441.0,0.10305251]
[1725943084304,0.088565,56453.0,56450.0,0.0004]
[1725943084503,0.088565,56453.0,56452.0,0.0004]
[1725943085507,0.088578,56444.0,56443.0,0.08822386]
[1725943085708,0.0004,56444.0,56438.0,0.070583]
[1725943086012,0.308582,56442.0,56437.0,0.070583]
[1725943086197,0.397164,56442.0,56437.0,0.070583]
[1725943086402,1.617266,56442.0,56441.0,1e-06]
[1725943086595,1.64031002,56442.0,56441.0,1e-06]
[1725943086903,1.64031002,56442.0,56441.0,0.001001]
[1725943087505,1.64031002,56442.0,56441.0,0.001]
[1725943088595,0.088593,56435.0,56434.0,0.0036]
[1725943088800,0.088993,56435.0,56434.0,0.074183]
[1725943089409,0.088993,56435.0,56434.0,0.0036]
[1725943089602,0.0004,56435.0,56434.0,0.092194]
[1725943089800,0.0014,56435.0,56434.0,0.0046]
[1725943090215,0.0014,56435.0,56434.0,0.28450386]
[1725943090508,0.0014,56435.0,56434.0,0.19628]
[1725943090712,0.0014,56435.0,56434.0,1.32788]
[1725943090914,0.0004,56444.0,56434.0,1.459286]
[1725943091109,0.0004,56444.0,56443.0,0.0004]
[1725943092007,0.088571,56449.0,56444.0,0.088578]
[1725943092228,0.088571,56449.0,56448.0,0.0004]
[1725943097314,0.16,56455.0,56448.0,0.20689819]
[1725943097611,0.088569,56450.0,56449.0,0.11902619]
[1725943099209,0.088557,56458.0,56451.0,0.088567]
[1725943099416,0.18306429,56459.0,56451.0,0.15919319]
[1725943099723,0.08856,56456.0,56454.0,0.07062619]
[1725943100019,0.18306429,56459.0,56454.0,0.07062619]
[1725943100314,0.088561,56455.0,56454.0,0.07062619]
[1725943102210,0.088563,56454.0,56453.0,0.07062619]
[1725943102517,0.088563,56454.0,56452.0,0.088566]
[1725943102518,0.088963,56454.0,56452.0,0.088566]
[1725943102720,0.088564,56453.0,56452.0,0.088566]
[1725943102916,0.088564,56453.0,56449.0,0.13665811]
[1725943102917,0.088569,56450.0,56445.0,0.08825811]
[1725943103118,0.1604,56446.0,56441.0,0.10587417]
[1725943103423,0.088577,56445.0,56444.0,0.08832448]
[1725943103621,0.088577,56445.0,56444.0,0.19117966]
[1725943103913,0.0034,56453.0,56452.0,0.088566]
[1725943104110,0.0034,56453.0,56452.0,0.088966]
[1725943104416,0.0034,56453.0,56452.0,0.28556691]
[1725943105013,0.091964,56453.0,56452.0,0.19700091]
[1725943105210,0.091964,56453.0,56452.0,0.19684259]
[1725943105410,0.091964,56453.0,56452.0,0.28514922]
[1725943105622,0.091964,56453.0,56452.0,0.0945]
[1725943105623,0.088964,56453.0,56452.0,0.0945]
[1725943105919,0.088964,56453.0,56452.0,0.27137263]
[1725943106418,0.091964,56453.0,56452.0,0.183066]
[1725943106714,0.091964,56453.0,56452.0,0.0945]
[1725943107328,0.0034,56453.0,56452.0,0.183066]
[1725943109617,0.0034,56453.0,56452.0,0.37370616]
[1725943110821,0.0034,56453.0,56452.0,0.28539953]
[1725943111918,0.088554,56460.0,56457.0,0.088557]
[1725943112116,0.088556,56458.0,56457.0,0.088557]
[1725943113319,0.097556,56458.0,56457.0,0.088557]
[1725943114319,0.009,56458.0,56457.0,0.088557]
[1725943114520,0.009,56458.0,56457.0,0.19067464]
[1725943114825,0.009,56458.0,56457.0,0.088557]
[1725943115922,0.0041,56469.0,56461.0,0.088551]
[1725943116117,0.088542,56468.0,56457.0,0.1616]
[1725943116427,0.0004,56458.0,56457.0,0.248558]
[1725943116724,0.0004,56458.0,56457.0,0.088558]
[1725943117027,0.088558,56457.0,56454.0,0.15913807]
[1725943117223,0.0004,56458.0,56457.0,0.088558]
[1725943117423,0.16,56468.0,56457.0,0.0034]
[1725943117619,0.088556,56459.0,56457.0,0.0034]
[1725943118526,0.088544,56466.0,56463.0,0.088548]
[1725943118725,0.088546,56465.0,56463.0,0.088548]
[1725943120226,0.092546,56465.0,56463.0,0.088548]
[1725943122626,0.088547,56464.0,56463.0,0.088548]
[1725943123931,0.091547,56464.0,56463.0,0.088548]
[1725943126224,0.003,56464.0,56463.0,0.088548]
[1725943126536,0.091547,56464.0,56463.0,0.088548]
[1725943127728,0.08855,56462.0,56461.0,0.08822009]
[1725943127930,0.08895,56462.0,56461.0,0.10241495]
[1725943129035,0.08995,56462.0,56461.0,0.19096695]
[1725943129231,0.08995,56462.0,56461.0,0.10241495]
[1725943130639,0.08995,56462.0,56460.0,0.088553]
[1725943130640,0.088552,56461.0,56460.0,0.088553]
[1725943130935,0.088952,56461.0,56460.0,0.088553]
[1725943131335,0.088553,56460.0,56459.0,0.07070085]
[1725943131531,0.088953,56460.0,56459.0,0.15925585]
[1725943131927,0.088953,56460.0,56459.0,0.07070085]
[1725943132234,0.088953,56460.0,56457.0,0.0004]
[1725943132235,0.088556,56458.0,56457.0,0.0004]
[1725943132533,0.088956,56458.0,56457.0,0.0004]
[1725943133331,0.088956,56458.0,56457.0,0.07110085]
[1725943133823,0.088956,56458.0,56457.0,0.07410085]
[1725943134227,0.088956,56458.0,56457.0,0.0034]
[1725943137637,0.088956,56458.0,56457.0,0.10604729]
[1725943138236,0.088956,56458.0,56457.0,0.19460529]
[1725943138430,0.088956,56458.0,56457.0,0.31697284]
[1725943139333,0.088956,56458.0,56457.0,0.22841484]
[1725943140736,0.088956,56458.0,56457.0,0.31697284]
[1725943140938,0.0004,56458.0,56457.0,0.31697284]
[1725943147234,0.0004,56458.0,56457.0,0.47697284]
[1725943147436,0.088548,56464.0,56457.0,0.53048451]
[1725943147639,0.088548,56464.0,56463.0,0.0004]
[1725943147842,0.088548,56464.0,56463.0,0.22541484]
[1725943148538,0.088548,56464.0,56463.0,0.10304729]
[1725943148940,0.091548,56464.0,56463.0,0.10304729]
[1725943149139,0.091548,56464.0,56463.0,0.2092857]
[1725943149442,0.091547,56464.0,56463.0,0.2092857]
[1725943150346,0.003,56464.0,56463.0,0.2978347]
[1725943150846,0.003,56464.0,56463.0,0.19159629]
[1725943151240,0.003,56464.0,56463.0,0.31392242]
[1725943152547,0.003,56464.0,56463.0,0.088949]
[1725943153542,0.0041,56473.0,56463.0,0.53172]
[1725943153741,0.0041,56479.0,56478.0,0.088525]
[1725943153945,0.0089,56485.0,56478.0,0.088525]
[1725943153946,0.10483018,56484.0,56478.0,0.1604]
[1725943154142,0.088512,56487.0,56483.0,0.0004]
[1725943154143,0.19334218,56487.0,56483.0,0.0004]
[1725943154343,0.02869596,56486.0,56479.0,0.10047253]
[1725943154550,0.088524,56479.0,56478.0,0.0004]
[1725943155047,0.11722241,56479.0,56478.0,0.0014]
[1725943155248,0.088524,56479.0,56478.0,0.0014]
[1725943155456,0.16662388,56479.0,56478.0,0.0014]
[1725943155746,0.088533,56473.0,56472.0,0.0004]
[1725943155949,0.27763556,56473.0,56472.0,0.0004]
[1725943156339,0.16273556,56473.0,56472.0,0.0004]
[1725943156543,0.134033,56473.0,56472.0,0.0004]
[1725943156848,0.088536,56472.0,56466.0,0.088543]
[1725943157049,0.0455,56473.0,56466.0,0.088543]
[1725943157050,0.0004,56467.0,56466.0,0.088543]
[1725943157351,0.0004,56467.0,56466.0,0.09724877]
[1725943158649,0.0004,56467.0,56464.0,0.02333965]
[1725943158949,0.0004,56465.0,56462.0,0.08855]
[1725943159151,0.0004,56463.0,56462.0,0.08855]
[1725943159345,0.0004,56465.0,56461.0,0.16]
[1725943159550,0.0004,56462.0,56461.0,0.248552]
[1725943160450,0.0004,56462.0,56461.0,0.30162453]
[1725943160646,0.0004,56462.0,56461.0,0.47072059]
[1725943161251,0.0004,56462.0,56461.0,0.49459319]
[1725943161739,0.0004,56462.0,56461.0,0.49859319]
[1725943163949,0.0004,56462.0,56461.0,0.37778065]
[1725943164158,0.0004,56462.0,56461.0,0.49880675]
[1725943164448,0.0004,56462.0,56461.0,0.49894001]
[1725943165749,0.0004,56462.0,56461.0,1.03026001]
[1725943166049,0.0004,56462.0,56461.0,1.63026001]
[1725943166352,0.0004,56465.0,56464.0,0.088547]
[1725943166547,0.0004,56465.0,56464.0,0.31139304]
[1725943167351,0.088538,56470.0,56467.0,0.088542]
[1725943167650,0.088538,56470.0,56469.0,0.0004]
[1725943168152,0.088532,56474.0,56469.0,0.0004]
[1725943168350,0.088532,56474.0,56473.0,0.0004]
[1725943168553,0.088532,56474.0,56473.0,0.088933]
[1725943168849,0.088529,56476.0,56474.0,0.088531]
[1725943169055,0.088529,56476.0,56475.0,0.0004]
[1725943169253,0.0494,56479.0,56475.0,0.24893]
[1725943169453,0.137924,56479.0,56478.0,0.0004]
[1725943169652,0.088524,56479.0,56478.0,0.0004]
[1725943170354,0.088519,56483.0,56478.0,0.088925]
[1725943170657,0.088519,56482.0,56478.0,0.088525]
[1725943171048,0.088519,56482.0,56479.0,0.088523]
[1725943171859,0.100519,56482.0,56479.0,0.088523]
[1725943172251,0.100519,56482.0,56478.0,0.161]
[1725943172252,0.088514,56485.0,56482.0,0.088519]
[1725943172659,0.088514,56485.0,56484.0,0.0004]
[1725943172850,0.0496,56487.0,56484.0,0.088915]
[1725943173051,0.088509,56489.0,56486.0,0.0004]
[1725943173260,0.0457,56492.0,56486.0,0.0004]
[1725943173451,0.134203,56492.0,56491.0,0.0004]
[1725943174960,0.134203,56492.0,56491.0,0.0024]
[1725943175357,0.134203,56492.0,56491.0,0.0014]
[1725943182159,0.134203,56492.0,56491.0,0.0024]
[1725943182564,0.16289695,56492.0,56491.0,0.0024]
[1725943183069,0.11719695,56492.0,56491.0,0.0024]
[1725943183360,0.02869395,56492.0,56491.0,0.090905]
[1725943183559,0.16089943,56500.0,56491.0,0.1604]
[1725943183560,0.10652315,56500.0,56491.0,0.1604]
[1725943183764,0.02869003,56499.0,56498.0,0.248494]
[1725943183973,0.0286883,56499.0,56498.0,0.248494]
[1725943184154,0.00089943,56500.0,56499.0,0.088492]
[1725943184356,0.00089943,56500.0,56499.0,0.09771632]
[1725943184357,0.02958671,56500.0,56499.0,0.09771632]
[1725943184563,0.00089943,56500.0,56499.0,0.09771632]
[1725943184762,0.00189943,56500.0,56499.0,0.09771632]
[1725943185556,0.00089943,56500.0,56499.0,0.09771632]
[1725943187269,0.00089943,56500.0,56499.0,1.22867632]
[1725943187463,0.00089943,56500.0,56499.0,0.09771632]
[1725943189780,0.00089943,56500.0,56499.0,1.22867632]
[1725943190663,0.00089751,56509.0,56508.0,0.088478]
[1725943190870,0.00089751,56509.0,56508.0,0.248878]
[1725943191267,0.0041,56520.0,56517.0,0.088463]
[1725943191467,0.088459,56521.0,56519.0,0.1604]
[1725943191655,0.088459,56521.0,56520.0,0.0004]
[1725943191861,0.088459,56521.0,56519.0,0.1604]
[1725943192158,0.0004,56520.0,56519.0,0.1604]
[1725943192363,0.088859,56520.0,56519.0,0.1604]
[1725943192766,0.0004,56520.0,56519.0,0.248861]
[1725943193371,0.0004,56520.0,56519.0,0.249861]
[1725943193874,0.0004,56520.0,56519.0,0.0014]
[1725943193875,0.177318,56520.0,56519.0,0.0014]
[1725943194060,0.135559,56520.0,56519.0,0.0014]
[1725943194771,0.098859,56520.0,56519.0,0.0014]
[1725943195766,0.0104,56520.0,56519.0,0.089861]
[1725943196362,0.0104,56520.0,56519.0,0.620661]
[1725943196560,0.088446,56529.0,56524.0,0.088452]
[1725943196870,0.088446,56529.0,56528.0,0.1604]
[1725943198269,0.088446,56529.0,56528.0,0.16920083]
[1725943198469,0.088446,56529.0,56528.0,0.17020083]
[1725943198470,0.097446,56529.0,56528.0,0.17020083]
[1725943198865,0.097446,56529.0,56528.0,0.0014]
[1725943199272,0.185892,56529.0,56528.0,0.0014]
[1725943199965,0.097446,56529.0,56528.0,0.0014]
[1725943200371,0.185892,56529.0,56528.0,0.0014]
[1725943201069,0.345892,56529.0,56528.0,0.0014]
[1725943203371,0.185892,56529.0,56528.0,0.0014]
[1725943203571,0.185891,56529.0,56528.0,0.0014]
[1725943204977,0.20921906,56529.0,56528.0,0.0014]
[1725943205676,0.39789526,56529.0,56528.0,0.00042969]
[1725943207173,0.23789526,56529.0,56528.0,0.00042969]
[1725943207372,0.20921806,56529.0,56528.0,0.00042969]
[1725943207570,0.23789534,56529.0,56528.0,0.00042969]
[1725943210680,0.34351906,56529.0,56528.0,0.00042969]
[1725943210979,0.23789534,56529.0,56528.0,0.00042969]
[1725943211477,0.3003005,56529.0,56528.0,0.00042969]
[1725943212379,0.30031506,56529.0,56528.0,0.00042969]
[1725943212675,0.29766306,56529.0,56528.0,0.00042969]
[1725943212888,0.20921806,56529.0,56528.0,0.00042969]
[1725943213182,0.29766306,56529.0,56528.0,0.00042969]
[1725943213368,0.29766306,56529.0,56528.0,6.9e-07]
[1725943213573,0.32634143,56529.0,56528.0,6.9e-07]
[1725943217076,0.23789643,56529.0,56528.0,6.9e-07]
[1725943217971,0.32634143,56529.0,56528.0,6.9e-07]
[1725943220576,1.45706143,56529.0,56528.0,6.9e-07]
[1725943220782,1.60791049,56529.0,56528.0,6.9e-07]
[1725943221687,0.265383,56519.0,56518.0,0.05302578]
[1725943221986,0.27754413,56519.0,56511.0,7.8e-07]
[1725943222177,0.176956,56508.0,56507.0,0.07070104]
[1725943222373,0.088486,56503.0,56502.0,0.07070104]
[1725943222583,0.088886,56503.0,56502.0,0.07070104]
[1725943222784,0.088486,56503.0,56502.0,0.07070104]
[1725943222986,0.088488,56502.0,56501.0,0.07070104]
[1725943223182,0.088888,56502.0,56501.0,0.07070104]
[1725943223389,0.088888,56502.0,56498.0,0.0957]
[1725943223390,0.088491,56500.0,56499.0,0.07070104]
[1725943223582,0.088891,56500.0,56499.0,0.07070104]
[1725943224284,0.088492,56499.0,56498.0,0.0957]
[1725943224478,0.088892,56499.0,56498.0,0.0957]
[1725943224676,0.088892,56499.0,56496.0,0.07230104]
[1725943224885,0.088892,56499.0,56484.0,0.3259]
[1725943224886,0.088497,56496.0,56495.0,0.07070104]
[1725943225081,0.088498,56495.0,56494.0,0.07070104]
[1725943225383,0.088895,56497.0,56492.0,0.07070104]
[1725943225384,0.088502,56493.0,56492.0,0.07070104]
[1725943225590,0.088902,56493.0,56492.0,0.07070104]
[1725943226282,0.088503,56492.0,56491.0,0.16760104]
[1725943226482,0.088903,56492.0,56491.0,0.16760104]
[1725943227279,0.088903,56492.0,56491.0,0.0969]
[1725943228792,0.088903,56492.0,56491.0,0.1109]
[1725943231692,0.088903,56492.0,56491.0,0.2709]
[1725943232191,0.0004,56492.0,56491.0,0.359405]
[1725943232396,0.0004,56492.0,56491.0,0.890445]
[1725943235685,0.0004,56492.0,56491.0,0.359405]
[1725943237391,0.0004,56492.0,56491.0,0.38316821]
[1725943239391,0.02360293,56503.0,56491.0,1.61412676]
[1725943239584,0.0041,56508.0,56502.0,0.1604]
[1725943239784,0.088474,56511.0,56507.0,0.0004]
[1725943240000,0.088483,56506.0,56503.0,0.10691282]
[1725943240294,0.0004,56504.0,56503.0,0.10691282]
[1725943240693,0.088483,56506.0,56503.0,0.10691282]
[1725943240897,0.088483,56506.0,56505.0,0.0004]
[1725943242092,0.088483,56506.0,56505.0,0.0044]
[1725943244191,0.088477,56509.0,56505.0,0.0044]
[1725943244393,0.097,56519.0,56508.0,0.1604]
[1725943244596,0.088463,56518.0,56513.0,0.08847]
[1725943244797,0.0929,56519.0,56513.0,0.08847]
[1725943244988,0.181361,56519.0,56518.0,0.0004]
[1725943246198,0.183361,56519.0,56518.0,0.0014]
[1725943247189,0.1140087,56519.0,56518.0,0.0014]
[1725943247395,0.002,56519.0,56518.0,0.089862]
[1725943248898,0.08845,56526.0,56520.0,0.088459]